Cogmind - Beta 9.4 @@@ ROGUE MODE // 2020.03.15 @ 08:49:29 Player: UlyssesB Result: Destroyed by H-55 Commando with Gauss Rifle Performance ------------- Evolutions (2) 1000 Regions Visited (5) 1000 Robots Destroyed (35) 175 Value Destroyed (706) 706 Prototype IDs (5) 100 Alien Tech Used (0) 0 Bonus (112) 112 TOTAL SCORE: 3093 Bonus ------- Follower Combat Kills 112 Cogmind --------- Core Integrity 0/550 Matter 275/300 Energy 34/100 System Corruption 0% Temperature Cool (99) Movement Core (50) Location -8/Materials Parts ------- > --- POWER (1) -------- (None) > --- PROPULSION (4) --- (None) > --- UTILITY (4) ------ (None) > --- WEAPON (2) ------- (None) > --- INVENTORY (4) ---- Experimental Sensor Array Light Assault Rifle Peak State ------------ > --- POWER ------------ Light Ion Engine > --- PROPULSION ------- Light Treads Light Treads > --- UTILITY ---------- Heat Sink Medium Storage Unit Medium Storage Unit Light Armor Plating > --- WEAPON ----------- Heavy Laser Heavy Laser > --- INVENTORY -------- Experimental Sensor Array Particle Gun Heavy Laser Heavy Laser Light Assault Rifle Grenade Launcher Rocket Launcher Proton Bomb Trap Proton Bomb Trap Proton Bomb Trap Proton Bomb Trap [Rating: 18] Favorites ----------- Power Light Ion Engine Engine Light Ion Engine Propulsion Light Treads Treads Light Treads Leg Aluminum Leg Wheel Compact Wheel Utility Medium Storage Unit Device Heat Sink Storage Medium Storage Unit Protection Light Armor Plating Weapon Small Laser Energy Gun Small Laser Ballistic Gun Assault Rifle Build | -11 -10 -10 -10 -9 -8 ------- Run | Scr Mat Min Exi Min Mat Slots Evolved 4 | . . . . . 4 Power . | . . . . . . Propulsion 2 | . . . . . 2 Utility 2 | . . . . . 2 Weapon . | . . . . . . Parts Attached 25 | . 10 2 1 5 7 Power 1 | . . . 1 . . Engine 1 | . . . 1 . . Core . | . . . . . . Reactor . | . . . . . . Propulsion 7 | . 5 2 . . . Treads 2 | . . 2 . . . Leg 3 | . 3 . . . . Wheel 2 | . 2 . . . . Hover . | . . . . . . Flight . | . . . . . . Utility 6 | . 2 . . 2 2 Device 2 | . 1 . . . 1 Storage 3 | . 1 . . 1 1 Processor . | . . . . . . Hackware . | . . . . . . Protection 1 | . . . . 1 . Artifact . | . . . . . . Weapon 11 | . 3 . . 3 5 Energy Gun 7 | . 1 . . 1 5 Energy Cannon . | . . . . . . Ballistic Gun 4 | . 2 . . 2 . Ballistic Cannon . | . . . . . . Launcher . | . . . . . . Special Weapon . | . . . . . . Impact Weapon . | . . . . . . Slashing Weapon . | . . . . . . Piercing Weapon . | . . . . . . Special Melee Weapon . | . . . . . . Unidentified Prototypes . | . . . . . . Parts Lost 12 | . 5 . . . 7 Power 2 | . 1 . . . 1 Propulsion 4 | . 2 . . . 2 Utility 1 | . . . . . 1 Weapon 5 | . 2 . . . 3 Highest Loss Streak 5 | . 4 . . . 5 Average Slot Usage (%) 87 | . 88 85 89 99 55 Engine 7 | . 8 . 4 14 1 Treads 16 | . . 4 28 28 13 Leg 8 | . 23 23 . . . Device 9 | . 11 14 14 4 5 Storage 13 | . 14 14 14 14 13 Protection 3 | . . . . 9 6 Energy Gun 13 | . 13 14 14 14 12 Ballistic Gun 11 | . 12 14 14 13 1 Naked Turns 109 | . . . . . 109 Heaviest Build 28 | 10 15 12 15 18 28 Greatest Support 40 | 20 20 40 40 40 40 Greatest Overweight (x) 3 | . 3 . . . 1 Average Overweight (x) . | . . . . . . Largest Inventory Capacity 12 | . 8 8 8 8 12 Average Capacity 8 | . 7 8 8 8 10 Most Carried 12 | . 8 8 8 8 12 Average Carried 7 | . 6 7 7 7 9 Final Capacity 8 | 6 8 8 8 8 4 Final Carried 8 | 6 7 8 7 8 2 Class Distribution -------------------- 89% | Mutant 10% | Scavenger-Mutant Dominant Class ---------------- Mutant | -10/Materials Scavenger-Mutant | -10/Mines Mutant | -10/Exiles Mutant | -9/Mines Mutant | -8/Materials Resources | -11 -10 -10 -10 -9 -8 ----------- Run | Scr Mat Min Exi Min Mat Matter Collected 574 | 200 217 6 20 89 42 Remotely . | . . . . . . Salvage Created 1044 | . 764 . . 105 175 Parts 83 | . 63 . . 5 15 Haulers Intercepted 2 | . 2 . . . . Recyclers Shooed 3 | . 2 . . 1 . Parts Field Recycled . | . . . . . . Retrieved Matter . | . . . . . . Parts Self-Destructed . | . . . . . . Prevented . | . . . . . . Kills | -11 -10 -10 -10 -9 -8 ------- Run | Scr Mat Min Exi Min Mat Combat Hostiles Destroyed 25 | . 18 . . 3 4 Guns 25 | . 18 . . 3 4 Classes Destroyed 7 | . 5 . . . 2 Worker 1 | . . . . . 1 Builder 3 | . 2 . . 1 . Hauler 2 | . 2 . . . . Recycler 1 | . . . . . 1 Watcher 3 | . 2 . . . 1 Swarmer 10 | . 5 . . 1 4 Grunt 15 | . 13 . . 2 . Best Kill Streak 5 | . 5 . . 2 4 Combat Bots Only 5 | . 5 . . 2 4 Max Kills in Single Turn 2 | . 2 . . 1 1 Gunslinging 1 | . 1 . . . . Exploded . | . . . . . . Melee . | . . . . . . Uniques/NPCs Destroyed . | . . . . . . Combat | -11 -10 -10 -10 -9 -8 -------- Run | Scr Mat Min Exi Min Mat Damage Taken 1909 | . 639 40 . 83 1147 Core 745 | . 160 16 . 10 559 Absorbed by Shields . | . . . . . . Core Remaining (%) 62 | 100 . . . 25 . Volleys Fired 111 | . 79 2 . 11 19 Largest 2 | . 2 2 . 2 2 Hottest 138 | . 70 60 . 60 138 Shots Fired 213 | . 153 4 . 20 36 Gun 213 | . 153 4 . 20 36 Cannon . | . . . . . . Launcher . | . . . . . . Special . | . . . . . . Kinetic 99 | . 77 2 . 11 9 Thermal 114 | . 76 2 . 9 27 Explosive . | . . . . . . Electromagnetic . | . . . . . . Robot Hit Streak 11 | . 11 1 . 5 10 Robot Miss Streak 5 | . 3 3 . 5 5 Penetration Max . | . . . . . . Secondary Targets 3 | . 2 . . 1 . Max Gunslinging Chain 1 | . 1 . . 1 . Shots Hit Robots 138 | . 105 1 . 13 19 Core Hits 59 | . 41 . . 7 11 Critical Hits . | . . . . . . Critical Kills . | . . . . . . Critical Parts Destroyed . | . . . . . . Melee Attacks . | . . . . . . Impact . | . . . . . . Slashing . | . . . . . . Piercing . | . . . . . . Sneak Attacks . | . . . . . . Combat Hostiles . | . . . . . . Follow-up Attacks . | . . . . . . Damage Inflicted 2052 | . 1177 12 . 194 669 Guns 1628 | . 1177 12 . 182 257 Cannons . | . . . . . . Explosions 386 | . . . . . 386 Melee . | . . . . . . Ramming 38 | . . . . 12 26 Kinetic 547 | . 426 . . 106 15 Thermal 1144 | . 751 12 . 76 305 Explosive . | . . . . . . Electromagnetic 323 | . . . . . 323 Impact . | . . . . . . Slashing . | . . . . . . Piercing . | . . . . . . Highest Corruption 1 | . 1 1 1 1 . Average Corruption 1 | . 1 1 1 1 . Corruption Purged . | . . . . . . Effects 10 | . 1 . 8 1 . Message Errors 3 | . 1 . 2 . . Energy Discharges 1 | . . . 1 . . Data Loss (minor) 6 | . . . 5 1 . Overload Shots . | . . . . . . Overflow Damage . | . . . . . . Projectiles . | . . . . . . Explosions . | . . . . . . Melee . | . . . . . . Knockbacks 1 | . . . . . 1 Impact 1 | . . . . . 1 Kinetic . | . . . . . . Secondary . | . . . . . . Self-Inflicted Damage 40 | . . . . . 40 Shots 3 | . . . . . 3 Rammed 9 | . 1 . . 5 3 Targets Rammed 11 | . 2 . . 6 3 Kicked 1 | . 1 . . . . Crushed 1 | . . . . 1 . Highest Temperature 181 | . 108 . . 81 181 Average Temperature 38 | . 22 . . 50 65 Received Heat Transfer 519 | . 294 . . 36 189 Siege Activations . | . . . . . . Robots Corrupted . | . . . . . . Combat Hostiles . | . . . . . . Parts Fried . | . . . . . . Impact Corruptions . | . . . . . . Robots Melted . | . . . . . . Combat Hostiles . | . . . . . . Parts Melted 2 | . 2 . . . . Heat Transferred 2919 | . 2138 25 . 175 581 Parts Sabotaged . | . . . . . . Parts Stolen . | . . . . . . Parts Stripped . | . . . . . . Power Chain Reactions 1 | . . . . . 1 Missiles Intercepted . | . . . . . . Alert | -11 -10 -10 -10 -9 -8 ------- Run | Scr Mat Min Exi Min Mat Peak Influence 230 | . 218 67 . 230 116 Average Influence 78 | . 90 65 . 81 51 Maximum Alert Level 1 | . 1 . . 1 . Low Security (%) 96 | . 92 100 . 98 100 Level 1 3 | . 7 . . 1 . Level 2 . | . . . . . . Level 3 . | . . . . . . Level 4 . | . . . . . . Level 5 . | . . . . . . High Security . | . . . . . . Max Security . | . . . . . . Squads Dispatched 6 | . 5 . . . 1 Investigation 4 | . 3 . . . 1 Extermination . | . . . . . . Reinforcement 2 | . 2 . . . . Assault . | . . . . . . Garrison . | . . . . . . Intercept . | . . . . . . Construction Impeded . | . . . . . . Haulers Reinforced . | . . . . . . Stealth | -11 -10 -10 -10 -9 -8 --------- Run | Scr Mat Min Exi Min Mat Distress Signals 4 | . 1 . . . 3 Communications Jammed . | . . . . . . Distress Signals . | . . . . . . Times Spotted 76 | . 34 3 . 10 29 Peak Tracking Total 8 | . 5 3 . 5 8 Tactical Retreats 5 | . 1 . . . 4 Traps | -11 -10 -10 -10 -9 -8 ------- Run | Scr Mat Min Exi Min Mat Traps Triggered 2 | . 2 . . . . Indirectly . | . . . . . . Trap Hack Attempts . | . . . . . . Triggered . | . . . . . . Disarmed . | . . . . . . Reprogrammed . | . . . . . . Reused 3 | . . . . . 3 Traps Extracted . | . . . . . . Installed 3 | . . . . . 3 Triggered 3 | . . . . . 3 Machines | -11 -10 -10 -10 -9 -8 ---------- Run | Scr Mat Min Exi Min Mat Machines Disabled . | . . . . . . Max in Single Turn . | . . . . . . Machines Sabotaged . | . . . . . . Garrisons Compromised . | . . . . . . Overloaded Fab Kills . | . . . . . . Fab Network Shutdowns . | . . . . . . Hacking | -11 -10 -10 -10 -9 -8 --------- Run | Scr Mat Min Exi Min Mat Machines Accessed 14 | . 4 . 4 . 6 Terminals 9 | . 4 . . . 5 Fabricators . | . . . . . . Repair Stations . | . . . . . . Recycling Units . | . . . . . . Scanalyzers 1 | . . . . . 1 Garrison Access . | . . . . . . Total Hacks 79 | . 13 . 48 . 18 Successful 66 | . 7 . 48 . 11 Failed 13 | . 6 . . . 7 Catastrophic 1 | . . . . . 1 Database Lockouts . | . . . . . . Manual 9 | . 3 . . . 6 Terminals 28 | . 13 . . . 15 Fabricators . | . . . . . . Repair Stations . | . . . . . . Recycling Units . | . . . . . . Scanalyzers 3 | . . . . . 3 Garrison Access . | . . . . . . Terminal Hacks 59 | . 5 . 48 . 6 Record 48 | . . . 48 . . Prototype ID Bank 2 | . . . . . 2 Emergency Access Points 1 | . 1 . . . . Repair Station Index 1 | . . . . . 1 Scanalyzer Index 1 | . . . . . 1 Locate Traps 2 | . 1 . . . 1 Recall Investigation 1 | . 1 . . . . Hauler Manifests 3 | . 2 . . . 1 Fabricator Hacks . | . . . . . . Repair Station Hacks . | . . . . . . Recycling Unit Hacks . | . . . . . . Scanalyzer 3 | . . . . . 3 Insert Component 1 | . . . . . 1 Analyze 2 | . . . . . 2 Garrison Access Hacks . | . . . . . . Unauthorized Hacks 11 | . 5 . . . 6 Terminals 4 | . 2 . . . 2 Track 1 | . 1 . . . . Botnet 3 | . 1 . . . 2 Fabricators . | . . . . . . Repair Stations . | . . . . . . Recycling Units . | . . . . . . Scanalyzers . | . . . . . . Garrison Access . | . . . . . . Data Cores Recovered . | . . . . . . Used . | . . . . . . Hacking Detections 9 | . 4 . . . 5 Full Trace Events 4 | . 3 . . . 1 Feedback Events 1 | . 1 . . . . Corruption 1 | . 1 . . . . Feedback Blocked . | . . . . . . Robot Schematics Acquired . | . . . . . . Robots Built . | . . . . . . Matter . | . . . . . . Time . | . . . . . . Total Robot Build Rating . | . . . . . . Part Schematics Acquired 1 | . . . . . 1 Parts Built . | . . . . . . Matter . | . . . . . . Time . | . . . . . . Total Part Build Rating . | . . . . . . Parts Repaired . | . . . . . . Time . | . . . . . . Parts Recycled . | . . . . . . Recycled Matter . | . . . . . . Retrieved Matter . | . . . . . . Retrieved Components . | . . . . . . Parts Scanalyzed 1 | . . . . . 1 Part Schematics Acquired 1 | . . . . . 1 Parts Damaged . | . . . . . . Bothacking | -11 -10 -10 -10 -9 -8 ------------ Run | Scr Mat Min Exi Min Mat Used RIF Installer . | . . . . . . Robots Hacked . | . . . . . . Non-combat . | . . . . . . Combat . | . . . . . . Robot Hacks Applied . | . . . . . . Relay Couplers Released . | . . . . . . Robots Rewired . | . . . . . . Allies Hacked . | . . . . . . Hacks Repelled . | . . . . . . Allies | -11 -10 -10 -10 -9 -8 -------- Run | Scr Mat Min Exi Min Mat Total Allies 4 | . . 3 . 1 . Largest Group 3 | . . 3 3 3 . Highest-Rated Group 40 | . . 40 40 40 . Highest-Rated Ally 31 | . . 16 16 31 . Total Orders . | . . . . . . Ally Attacks 44 | . . 7 . 37 . Total Damage 473 | . . 75 . 398 . Kills 13 | . . 2 . 11 . Allies Corrupted . | . . . . . . Allies Melted . | . . . . . . Intel | -11 -10 -10 -10 -9 -8 ------- Run | Scr Mat Min Exi Min Mat Robot Analysis Total . | . . . . . . Derelict Logs Recovered 1 | . . . . 1 . Drone Launches . | . . . . . . Drone Recoveries . | . . . . . . Exploration | -11 -10 -10 -10 -9 -8 ------------- Run | Scr Mat Min Exi Min Mat Turns Passed 4454 | . 1240 340 980 1323 571 Spaces Moved 2654 | 1 735 261 611 623 423 Core 186 | . 1 . . . 185 Treads 1504 | . . 32 611 623 238 Legs 795 | 1 565 229 . . . Wheels 169 | . 169 . . . . Hover . | . . . . . . Flight . | . . . . . . Fastest Speed 50 | 120 90 120 160 160 50 Average Speed 136 | 120 114 124 160 160 112 Slowest Speed 200 | 120 200 160 160 160 180 Overloaded Moves . | . . . . . . Propulsion Burnouts . | . . . . . . Robots Hopped . | . . . . . . Cave-ins Triggered . | . . . . . . Exploration Rate (%) 59 | 1 88 62 77 86 43 Regions Visited 5 Branch Regions 3 Pre-discovered Areas 2 | . . . 1 1 . Known Exits Taken . | . . . . . . Unknown Exits Taken 5 | 1 1 1 1 1 . Scrap Searched 3 | . . 1 . 2 . Spaces Dug . | . . . . . . Terrain Destroyed 6 | . . . . . 6 Melee . | . . . . . . Projectile . | . . . . . . AOE 6 | . . . . . 6 Actions | -11 -10 -10 -10 -9 -8 --------- Run | Scr Mat Min Exi Min Mat Total 3291 | . 991 273 614 926 487 Wait 452 | . 155 . 3 274 20 Move 2649 | . 734 260 610 622 423 Hop . | . . . . . . Pick Up 21 | . 9 5 . 3 4 Fast Attach 4 | . 1 . . 2 1 Attach 15 | . 8 2 1 . 4 Detach 1 | . . . . . 1 Swap 6 | . 1 . . 3 2 Drop 18 | . 2 4 . 5 7 Fire 111 | . 79 2 . 11 19 Melee . | . . . . . . Ram 1 | . . . . . 1 Kick 2 | . 2 . . . . Crush 8 | . . . . 6 2 Escape Stasis . | . . . . . . Rewire . | . . . . . . Trap 3 | . . . . . 3 Miscellaneous . | . . . . . . Route ------- -11/Scrapyard -10/Materials (discovered 4 exits: [*Mat x3] / [*Min]) -10/Mines -10/Exiles (discovered 2 exits: [*Min x2]) -9/Mines (discovered 2 exits: *Mat x2) -8/Materials (discovered 1 exit: [*Fac]) History --------- Turn | Location | Event 1 | -11/Scrapyard | Discovered new exit (range 0) 1 | -11/Scrapyard | Entered Materials 139 | -10/Materials | Discovered new exit (range 16) 310 | -10/Materials | Build established: Mutant 425 | -10/Materials | Discovered new exit (range 16) 631 | -10/Materials | Discovered new exit (range 14) 807 | -10/Materials | Lost 4 parts (1p1n2w) 853 | -10/Materials | Core integrity fell below 50% 870 | -10/Materials | Discovered new exit (range 14) 1241 | -10/Materials | Entered Mines 1245 | -10/Mines | Assisted by bots powering up and referring to "LRC-V3" 1352 | -10/Mines | Build established: Scavenger-Mutant 1446 | -10/Mines | Received a Rocket Launcher from a helpful Derelict 1520 | -10/Mines | Found a hidden stash of uninstalled traps 1573 | -10/Mines | Deemed a non-threat by the Exiles lab entrance 1574 | -10/Mines | Discovered new exit (range 5) 1581 | -10/Mines | Entered Exiles 1581 | -10/Exiles | Accompanied by 3 allies 1607 | -10/Exiles | Discovered new exit (range 15) 1645 | -10/Exiles | Met 8R-AWN 1674 | -10/Exiles | Met EX-HEX 1725 | -10/Exiles | Met EX-BIN 1837 | -10/Exiles | Met EX-DEC 1841 | -10/Exiles | Build established: Mutant 1863 | -10/Exiles | Learned location of Zion (-6) 2083 | -10/Exiles | Visited The Gauntlet 2258 | -10/Exiles | Discovered new exit (range 14) 2561 | -10/Exiles | Entered Mines 2561 | -9/Mines | Accompanied by 3 allies 2579 | -9/Mines | Met a Derelict bent on vengeance 2809 | -9/Mines | Discovered new exit (range 10) 3100 | -9/Mines | Found a damaged Exp. Sensor Array with a note attached 3109 | -9/Mines | Found Prototype Device 3138 | -9/Mines | Received a Mining Laser from a helpful Derelict 3167 | -9/Mines | Discovered new exit (range 8) 3884 | -9/Mines | Entered Materials 3884 | -8/Materials | Evolved 4 slots: Propulsion x2, Utility x2 4190 | -8/Materials | Discovered new exit (range 9) 4262 | -8/Materials | Identified Exp. Sensor Array 4358 | -8/Materials | Lost 5 parts (2n1u2w) 4382 | -8/Materials | Core integrity fell below 50% 4435 | -8/Materials | Core integrity fell below 20% 4455 | -8/Materials | Destroyed by H-55 Commando with Gauss Rifle Last Messages --------------- (2 escorts) A-02 Transporter 1x Terrain Scan Processor 5x Imp. Heat Sink A-02 Transporter 2x Enh. Autogun 1x Imp. EM Shotgun A-02 Transporter 5x Particle Cannon A-02 Transporter 3x Hvy. Ion Engine A-02 Transporter 5x Adv. Weight Redist. System 04427_ K-01 Serf collects debris. 04437_ Slug penetrates Wall. 04451_ Penetrated by Slug. 04453_ Slug penetrates Scanalyzer. 04453_ Hvy. Laser destroyed. 04455_ Dropped Hvy. Laser. 04455_ Penetrated by Slug. Map ----- +----------------------------------------------------+ | #? ####+######??????????????????????? | | #? " # #??????????????????????? | | # """ # #??????????????????????? | | # """ # #??????????????????????? | | + """ # #??????????????????????? | | ##+## # "" # """ """ #??????????????????????? | | ????# # """ # """ """ #??????????????????????? | | ????### ###?"" # """ """ #??????????????????????? | | ??????# #???"" # #??????????????????????? | | ??????# #????" !###########??????????????????????? | | ??????#%#???? #????????????????????????????????? | | ??????# #?????= #????????????????????????????????? | | ??????# #???????#????????????????????????????????? | | ??????# #????????????????????????????????????????? | | ??#####/#????????????????????????????????????????? | | ??# #????????????????????????????????????????? | | ??# #????????????????????????????????????????? | | ??# #????????????????????????????????????????? | | ### ###################??????????????????????? | | # """ ## # #??????????????????????? | | " # """ + ! # """ "" #??????????????????????? | | " # """ ## k """ """#??????????????????????? | | " # ##] # h """ S"#??????????????????????? | | # """ ### ## YY """#??????????????????????? | | # """ #?# ## h """#??????????????????????? | | + """ #?# ## ! @#??????????????????????? | | # #?# #### #########??????????????????????? | | +####+##### ###############?????????????????????? | | ?????????????????? | | ?????????????????? | | ####T####################### ?????????????????? | | ???###???????????????????????????????????????????? | | ?????????????????????????????????????????????????? | | | | | | | | | | | | | | | | | | | | | | | | | | | | | | | | | | | +----------------------------------------------------+ Best States ------------- Heat Dissipation 41 Energy Generation 10 Energy Capacity 125 Matter Stores 300 Matter Capacity 300 Sight Range 16 Terrain Scan Density 10 Armor Coverage 150 Evasion (%) 50 Recoil Reduction 2 Item Schematics ----------------- Exp. Sensor Array | -8/Materials | Scanalyzed Robot Schematics ------------------ None Fabricated ------------ Nothing Alien Tech Used ----------------- None Achievements -------------- None Challenges ------------ None Game ------ Seed StasisAssembledCompactor Manual? 0 Play Time 00:46:51 Cumulative 119.1 hours Start 2020.03.15 @ 07:50:52 End 2020.03.15 @ 08:49:29 Sessions 1 Manual Loads 0 Difficulty Rogue Special Mode None Game No. 78 Rogue 78 Adventurer 0 Explorer 0 Win Type - Total 4 Types 4/0/0/0/0/0/0 Lore% 64 Gallery% 57 Achievement% 39 Wizard Run 0 Options --------- ASCII 1 Keyboard 0 Movement Mouse Keybinds 0 Fullscreen 2 Font 12/Smallcaps Map View 76x56 Tactical HUD 1 Map Filters NONE Filters NONE Steam 0 RUN: 68964f43-d78d-49de-9a45-fd97d7642ed4